bitfinex-derivatives/quotes_SOLF0:USTF0_20250312
["timestamp","ask_amount","ask_price","bid_price","bid_amount"]
[1741797518058,35.58,124.84,124.76,4.2521]
[1741797518262,1.39431456,124.89,124.77,33.0543115]
[1741797518263,43.5901,124.87,124.77,33.0543115]
[1741797518459,35.58,124.87,124.82,8.0127]
[1741797518863,0.05133156,124.86,124.83,0.0503481]
[1741797519466,0.05133156,124.86,124.85,8.011]
[1741797520563,35.58,124.9,124.88,8.009]
[1741797521471,8.0057,124.94,124.9,8.0076]
[1741797521666,37.1099115,124.97,124.88,0.0587487]
[1741797521866,0.0579161,124.93,124.87,33.0543115]
[1741797522066,0.0579161,124.93,124.91,0.0514367]
[1741797522465,0.0579161,124.93,124.92,8.0065]
[1741797523370,35.58,124.99,124.91,0.0514367]
[1741797523565,35.58,124.99,124.89,68.6343115]
[1741797523765,120.73093424,125.01,124.91,33.0543115]
[1741797523967,79.67542274,125.01,124.96,8.0035]
[1741797524168,35.58,125.01,124.96,8.0035]
[1741797524367,43.5811,125.01,124.96,8.0035]
[1741797524567,0.05831923,125.0,124.97,0.05730005]
[1741797525670,8.06011923,125.0,124.97,0.05730005]
[1741797525871,0.05831923,125.0,124.97,0.05730005]
[1741797526267,8.06011923,125.0,124.97,0.05730005]
[1741797526464,0.05831923,125.0,124.97,0.05730005]
[1741797527964,8.0027,124.98,124.97,0.05730005]
[1741797528771,8.0024,124.99,124.97,0.05730005]
[1741797528969,0.05831923,125.0,124.97,0.05730005]
[1741797529972,8.06001923,125.0,124.97,0.05730005]
[1741797531877,8.0025,124.99,124.97,0.05730005]
[1741797532076,0.05831923,125.0,124.97,0.05730005]
[1741797532478,8.0027,124.98,124.97,0.05730005]
[1741797533375,8.0027,124.98,124.97,5e-08]
[1741797533575,8.0065,124.92,124.91,4.0426]
[1741797533776,35.54,124.94,124.88,4.0368]
[1741797534469,33.0543115,124.93,124.86,8.0362]
[1741797534871,0.05753628,124.91,124.88,0.05924511]
[1741797535266,8.0084,124.89,124.88,0.05924511]
[1741797535671,8.06533628,124.91,124.88,0.05924511]
[1741797536073,0.05753628,124.91,124.88,0.05924511]
[1741797536874,8.0084,124.89,124.88,0.05924511]
[1741797537672,43.5484,124.89,124.88,4.511e-05]
[1741797538277,68.5943115,124.89,124.81,12.3214]
[1741797538473,68.5943115,124.89,124.81,4.308]
[1741797538773,35.54,124.89,124.81,4.308]
[1741797539373,8.01,124.87,124.81,4.308]
[1741797539574,0.05702708,124.86,124.84,0.05646468]
[1741797540976,0.05702708,124.86,124.84,8.06776468]
[1741797541370,0.05702708,124.86,124.84,0.05646468]
[1741797541574,8.011,124.85,124.84,0.05646468]
[1741797541777,0.05702708,124.86,124.84,0.05646468]
[1741797541976,8.06772708,124.86,124.84,0.05646468]
[1741797542379,35.59702708,124.86,124.7,123.10205988]
[1741797542577,8.013,124.82,124.76,4.012]
[1741797542877,35.54,124.81,124.76,4.012]
[1741797543081,8.0157,124.78,124.76,4.012]
[1741797543381,68.5943115,124.81,124.74,8.4009]
[1741797543575,0.05367904,124.78,124.76,0.05886458]
[1741797544081,8.0161,124.77,124.76,0.05886458]
[1741797544779,43.5561,124.77,124.76,0.05886458]
[1741797545080,35.54,124.77,124.76,0.05886458]
[1741797545982,0.05367904,124.78,124.76,0.05886458]
[1741797547778,8.0161,124.77,124.76,0.05886458]
[1741797547983,8.0161,124.77,124.76,6.458e-05]
[1741797548278,8.0192,124.73,124.7,4.2462]
[1741797549083,8.0194,124.72,124.69,4.108]
[1741797549285,35.54,124.74,124.66,4.2727]
[1741797549474,0.06014968,124.72,124.69,0.05596594]
[1741797549680,8.07974968,124.72,124.69,8.07716594]
[1741797549885,5.70837218,124.71,124.69,0.05596594]
[1741797550683,8.07954968,124.72,124.69,0.05596594]
[1741797550879,0.06014968,124.72,124.69,0.05596594]
[1741797551085,5.70199371,124.71,124.69,0.05596594]
[1741797551278,43.5806,124.7,124.69,0.05596594]
[1741797551882,35.56,124.7,124.64,4.108]
[1741797552083,8.0223,124.68,124.63,4.215]
[1741797552385,33.0543115,124.67,124.54,33.0543115]
[1741797552584,33.0543115,124.67,124.6,4.103]
[1741797552585,35.56,124.66,124.6,4.103]
[1741797553185,0.0588774,124.64,124.62,0.05142294]
[1741797554982,0.0588774,124.64,124.5,253.28498752]
[1741797554983,33.0543115,124.63,124.53,8.6797]
[1741797555183,35.56,124.62,124.53,8.6797]
[1741797555485,35.56,124.62,124.55,37.0173115]
[1741797555687,35.56,124.62,124.59,8.0271]
[1741797555879,35.56,124.62,124.55,37.0173115]
[1741797556081,35.56,124.62,124.59,0.05089168]
[1741797556082,35.61790907,124.62,124.59,0.05089168]
[1741797556280,0.05790907,124.62,124.59,0.05089168]
[1741797556883,0.05790907,124.62,124.59,8.07819168]
[1741797557085,0.05790907,124.62,124.59,0.05089168]
[1741797558187,35.63790907,124.62,124.59,0.05089168]
[1741797559179,35.63790907,124.62,124.6,8.0267]
[1741797559586,35.63790907,124.62,124.59,0.05089168]
[1741797562385,0.05790907,124.62,124.6,8.0271]
[1741797562584,0.05790907,124.62,124.59,0.05089168]
[1741797563489,0.05790907,124.62,124.61,8.0264]
[1741797563786,35.58,124.66,124.59,0.05089168]
[1741797563979,8.0242,124.65,124.61,8.026]
[1741797564180,33.0543115,124.67,124.59,0.05089168]
[1741797564385,35.58,124.66,124.55,72.5773115]
[1741797564586,8.0258,124.63,124.58,8.0282]
[1741797564793,33.0543115,124.65,124.55,39.523]
[1741797564989,0.05405813,124.62,124.59,0.05893559]
[1741797565194,0.05405813,124.62,124.59,8.08623559]
[1741797565381,0.05405813,124.62,124.59,0.05893559]
[1741797565692,0.05405813,124.62,124.61,8.0264]
[1741797566083,37.3628115,124.69,124.59,0.05893559]
[1741797566287,35.58,124.68,124.64,8.0244]
[1741797566595,35.58,124.68,124.6,4.3384]
[1741797566792,8.0234,124.66,124.6,4.3384]
[1741797566987,35.58,124.67,124.6,4.3384]
[1741797567188,43.6023,124.68,124.64,8.0239]
[1741797567394,0.06108491,124.65,124.64,8.0239]
[1741797567687,0.06108491,124.65,124.63,0.06169177]
[1741797567893,0.06108491,124.65,124.63,8.08669177]
[1741797568291,0.06108491,124.65,124.63,0.06169177]
[1741797568488,0.06108491,124.65,124.64,8.0245]
[1741797569091,0.06108491,124.65,124.63,0.06169177]
[1741797569800,0.06108491,124.65,124.64,8.0245]
[1741797570593,0.06108491,124.65,124.63,0.06169177]
[1741797570794,8.08528491,124.65,124.63,0.06169177]
[1741797571104,0.06108491,124.65,124.63,0.06169177]
[1741797571399,8.0245,124.64,124.63,0.06169177]
[1741797571805,43.6045,124.64,124.63,0.06169177]
[1741797574399,35.58,124.64,124.63,0.06169177]
[1741797574595,0.06108491,124.65,124.63,0.06169177]
[1741797575695,0.06108491,124.65,124.63,8.08649177]
[1741797575896,0.06108491,124.65,124.63,0.06169177]
[1741797576100,8.08528491,124.65,124.63,0.06169177]
[1741797576492,0.06108491,124.65,124.63,0.06169177]
[1741797577198,0.06108491,124.65,124.63,8.08649177]
[1741797577398,0.06108491,124.65,124.63,0.06169177]
[1741797577903,8.08528491,124.65,124.63,0.06169177]
[1741797578403,0.06108491,124.65,124.63,0.06169177]
[1741797579207,8.08528491,124.65,124.63,8.08669177]
[1741797579506,0.06108491,124.65,124.63,0.06169177]
[1741797579705,8.0245,124.64,124.63,0.06169177]
[1741797580106,13.69096638,124.64,124.63,0.06169177]
[1741797582308,5.66646638,124.64,124.63,0.06169177]
[1741797584317,13.69096638,124.64,124.63,0.06169177]
[1741797586620,8.0271,124.6,124.58,3.9548]
[1741797586821,5.66646638,124.59,124.58,3.9548]
[1741797587021,5.66646638,124.59,124.58,11.9832]
[1741797587719,52.48541152,124.68,124.63,8.0248]
[1741797587918,4.45589133,124.67,124.63,8.0248]
[1741797588119,4.45589133,124.66,124.64,0.05834819]
[1741797588322,4.46061625,124.65,124.64,0.05834819]
[1741797588522,0.06000852,124.66,124.64,0.05834819]
[1741797588718,4.46031935,124.65,124.64,0.05834819]
[1741797588924,12.48421935,124.65,124.64,0.05834819]
[1741797589124,4.46031935,124.65,124.64,0.05834819]
[1741797591225,12.48421935,124.65,124.64,0.05834819]
[1741797591420,4.46031935,124.65,124.64,0.05834819]
[1741797591616,12.49923482,124.65,124.64,0.05834819]
[1741797592026,4.47533482,124.65,124.64,0.05834819]
[1741797592823,4.47533482,124.65,124.59,12.2696]
[1741797593119,40.01533482,124.64,124.56,4.2948]
[1741797593317,8.0274,124.6,124.57,8.0287]
[1741797593521,4.47533482,124.59,124.57,8.0287]
[1741797593720,39.5796,124.64,124.56,4.2948]
[1741797593921,0.05609182,124.59,124.57,0.05904991]
[1741797594131,4.49301715,124.58,124.57,0.05904991]
[1741797594728,0.05631333,124.59,124.57,0.05904991]
[1741797595119,0.05631333,124.59,124.58,8.0284]
[1741797595329,8.0261,124.62,124.57,0.05904991]
[1741797595529,35.54,124.64,124.57,0.05904991]
[1741797596227,8.0255,124.63,124.6,8.0268]
[1741797596626,0.05850917,124.63,124.57,33.39417817]
[1741797596832,8.08400917,124.63,124.6,8.0268]
[1741797597033,0.05850917,124.63,124.57,35.54]
[1741797597535,0.05850917,124.63,124.59,0.05537562]
[1741797597836,8.0261,124.62,124.59,8.08257562]
[1741797598129,0.05850917,124.63,124.59,0.05537562]
[1741797598334,8.0258,124.62,124.6,8.0268]
[1741797598635,8.0258,124.62,124.59,0.05537562]
[1741797599134,8.0258,124.62,124.59,8.08267562]
[1741797599540,0.05850917,124.63,124.6,8.0267]
[1741797600033,0.05850917,124.63,124.59,0.05537562]
[1741797600239,0.05850917,124.63,124.62,8.0258]
[1741797600434,5.7108219,124.62,124.59,0.05537562]
[1741797600941,5.7108219,124.61,124.59,0.05537562]
[1741797601134,8.0271,124.6,124.59,0.05537562]
[1741797601334,5.7108219,124.61,124.59,8.08297562]
[1741797601540,13.7379219,124.6,124.59,0.05537562]
[1741797602739,13.7379219,124.6,124.53,8.2006]
[1741797602740,41.2308219,124.6,124.53,8.2006]
[1741797602944,39.10500007,124.59,124.51,53.37696464]
[1741797603142,33.39417817,124.57,124.51,53.37696464]
[1741797603342,8.0322,124.52,124.51,53.37696464]
[1741797603544,33.39417817,124.55,124.49,33.18026075]
[1741797603848,8.0335,124.5,124.49,33.18026075]
[1741797604643,8.0335,124.51,124.49,33.18026075]
[1741797604943,5.6978112,124.5,124.49,33.18026075]
[1741797605645,0.05094133,124.53,124.49,33.18026075]
[1741797607040,0.05094133,124.53,124.48,0.06143597]
[1741797607446,0.05094133,124.53,124.5,8.0331]
[1741797607845,0.05094133,124.53,124.49,8.0339]
[1741797608146,0.05094133,124.53,124.48,0.06143597]
[1741797609641,0.05094133,124.53,124.5,8.0331]
[1741797609848,0.05094133,124.53,124.49,35.52]
[1741797610043,8.2378,124.6,124.5,33.39417817]
[1741797610244,4.54800665,124.59,124.5,33.39417817]
[1741797610648,12.57590665,124.59,124.55,8.0302]
[1741797610841,4.54800665,124.58,124.55,8.0302]
[1741797611046,43.5679,124.59,124.55,8.0302]
[1741797611241,0.05301266,124.58,124.55,8.08446885]
[1741797611447,4.59981674,124.58,124.56,8.0292]
[1741797611752,0.05301266,124.58,124.55,0.05426885]
[1741797611947,0.05301266,124.58,124.56,8.0297]
[1741797612147,0.05301266,124.58,124.55,0.05426885]
[1741797612639,0.05301266,124.58,124.55,8.08416885]
[1741797612841,0.05301266,124.58,124.55,0.05426885]
[1741797613045,0.05301266,124.58,124.55,8.08406885]
[1741797613548,0.05301266,124.58,124.56,8.0296]
[1741797613749,4.60066424,124.58,124.55,0.05426885]
[1741797613949,0.05301266,124.58,124.55,0.05426885]
[1741797614350,0.05301266,124.58,124.57,8.029]
[1741797614549,0.05301266,124.58,124.55,0.05426885]
[1741797614753,0.05301266,124.58,124.56,8.0292]
[1741797614954,0.05301266,124.58,124.55,0.05426885]
[1741797615452,0.05301266,124.58,124.56,8.0292]
[1741797615851,4.60067788,124.58,124.56,8.0292]
[1741797616448,35.52,124.57,124.55,0.05426885]
[1741797616648,37.94188646,124.56,124.55,0.05426885]
[1741797616852,8.0313,124.54,124.5,8.0332]
[1741797617055,33.39417817,124.56,124.47,47.818]
[1741797617252,39.8303,124.57,124.47,47.818]
[1741797617453,8.0306,124.55,124.51,8.0323]
[1741797617653,33.39417817,124.54,124.43,274.06026075]
[1741797617856,8.0341,124.5,124.45,8.0364]
[1741797618052,33.39417817,124.52,124.47,0.0548902]
[1741797618354,8.08733621,124.49,124.47,0.0548902]
[1741797618760,0.05273621,124.49,124.47,0.0548902]
[1741797619457,8.0348,124.48,124.47,0.0548902]
[1741797619853,8.0348,124.48,124.39,8.2635]
[1741797619854,37.93148388,124.48,124.39,8.2635]
[1741797620051,33.39417817,124.48,124.39,12.2635]
[1741797620251,39.905,124.49,124.39,12.2635]
[1741797620457,8.0365,124.46,124.41,8.0392]
[1741797620949,39.905,124.49,124.39,12.2635]
[1741797621157,39.905,124.49,124.42,0.05293331]
[1741797621158,0.05174236,124.45,124.42,0.05293331]
[1741797621557,0.05174236,124.45,124.43,8.0376]
[1741797621952,0.05174236,124.45,124.42,0.05293331]
[1741797622151,0.05174236,124.45,124.42,8.09143331]
[1741797622454,35.52,124.44,124.42,0.05293331]
[1741797622659,68.91417817,124.44,124.37,4.1531]
[1741797622854,35.52,124.44,124.37,4.1531]
[1741797623056,35.52,124.44,124.38,41.75487817]
[1741797623257,35.52,124.47,124.38,41.75487817]
[1741797623856,0.0613368,124.44,124.41,0.06159047]
[1741797624259,35.52,124.5,124.41,0.06159047]
[1741797624452,35.52,124.5,124.42,33.39417817]
[1741797624652,68.91417817,124.52,124.4,68.91417817]
[1741797624851,33.39417817,124.5,124.43,8.0378]
[1741797625055,33.39417817,124.5,124.4,68.91417817]
[1741797625255,76.94667817,124.52,124.46,8.036]
[1741797625557,4.51941691,124.51,124.46,8.036]
[1741797625764,0.05716356,124.5,124.42,33.39417817]
[1741797626062,39.687,124.53,124.47,0.05367363]
[1741797626258,37.91477512,124.52,124.47,0.05367363]
[1741797626450,4.57512108,124.51,124.47,0.05367363]
[1741797626654,0.05482228,124.51,124.47,0.05367363]
[1741797628559,8.0339,124.5,124.47,0.05367363]
[1741797628760,0.05482228,124.51,124.47,0.05367363]
[1741797629555,4.57878771,124.51,124.47,0.05367363]
[1741797629756,0.05482228,124.51,124.47,0.05367363]
[1741797630262,8.0339,124.5,124.47,0.05367363]
[1741797630652,0.05482228,124.51,124.47,0.05367363]
[1741797631258,8.08812228,124.51,124.47,8.08877363]
[1741797631558,0.05482228,124.51,124.47,0.05367363]
[1741797632061,8.034,124.5,124.47,0.05367363]
[1741797632358,0.05482228,124.51,124.47,0.05367363]
[1741797632560,8.0348,124.48,124.47,0.05367363]
[1741797632756,0.05482228,124.51,124.47,0.05367363]
[1741797633156,8.0346,124.49,124.47,0.05367363]
[1741797633373,0.05482228,124.51,124.47,0.05367363]
[1741797633561,8.0345,124.49,124.47,0.05367363]
[1741797633956,0.05482228,124.51,124.47,0.05367363]
[1741797634157,4.57933062,124.51,124.47,0.05367363]
[1741797634761,8.0348,124.48,124.47,0.05367363]
[1741797635364,8.0343,124.49,124.47,0.05367363]
[1741797636065,8.08802228,124.51,124.47,8.08907363]
[1741797636266,8.08802228,124.51,124.47,0.05367363]
[1741797636467,0.05482228,124.51,124.47,0.05367363]
[1741797636766,4.58486812,124.51,124.47,0.05367363]
[1741797637164,8.0345,124.49,124.47,0.05367363]
[1741797637364,0.05482228,124.51,124.47,0.05367363]
[1741797637563,33.39417817,124.5,124.47,0.05367363]
[1741797637868,8.0348,124.48,124.47,0.05367363]
[1741797638068,43.5548,124.48,124.47,0.05367363]
[1741797638463,8.0337,124.5,124.47,0.05367363]
[1741797638667,0.05482228,124.51,124.47,0.05367363]
[1741797638866,4.5890817,124.51,124.47,0.05367363]
[1741797639068,8.0348,124.48,124.47,0.05367363]
[1741797639874,0.05482228,124.51,124.47,0.05367363]
[1741797640172,8.0337,124.5,124.47,0.05367363]
[1741797640564,8.0342,124.49,124.47,0.05367363]
[1741797640968,0.05482228,124.51,124.47,0.05367363]
[1741797641264,4.59117519,124.51,124.47,0.05367363]
[1741797641666,8.0346,124.49,124.47,0.05367363]
[1741797642472,0.05482228,124.51,124.47,0.05367363]
[1741797642473,8.0348,124.48,124.47,0.05367363]
[1741797643272,8.0345,124.49,124.47,0.05367363]
[1741797643870,0.05482228,124.51,124.47,0.05367363]
[1741797644169,4.5982144,124.51,124.47,0.05367363]
[1741797644874,8.0348,124.48,124.47,0.05367363]
[1741797646669,8.0345,124.49,124.47,0.05367363]
[1741797646875,0.05482228,124.51,124.47,0.05367363]
[1741797647075,4.55096859,124.5,124.47,0.05367363]
[1741797647876,4.55406043,124.49,124.47,0.05367363]
[1741797648175,0.05482228,124.51,124.47,0.05367363]
[1741797648373,8.0348,124.48,124.47,0.05367363]
[1741797649078,48.09004662,124.48,124.47,0.05367363]
[1741797649980,40.05524662,124.48,124.41,4.2616]
[1741797650175,8.0379,124.44,124.41,4.2616]
[1741797650476,35.5,124.48,124.43,8.0378]
[1741797650682,4.55618352,124.47,124.43,8.0378]
[1741797651282,0.05318329,124.46,124.44,0.05889318]
[1741797651681,8.08978329,124.46,124.44,0.05889318]
[1741797651984,0.05318329,124.46,124.44,0.05889318]
[1741797653086,0.05318329,124.46,124.44,8.09589318]
[1741797653683,0.05318329,124.46,124.45,8.0368]
[1741797654789,0.05318329,124.46,124.44,8.09579318]
[1741797654985,0.05318329,124.46,124.44,0.05889318]
[1741797655482,0.05318329,124.46,124.44,8.09599318]
[1741797656387,8.08938329,124.46,124.44,8.09599318]
[1741797656589,0.05318329,124.46,124.44,0.05889318]
[1741797657086,0.05318329,124.46,124.45,8.0368]
[1741797657586,35.48,124.51,124.44,20.97837123]
[1741797657782,4.56298568,124.5,124.45,8.5975]
[1741797657978,35.48,124.51,124.45,8.5975]
[1741797658182,4.56249109,124.5,124.45,8.5975]
[1741797658490,35.48,124.52,124.45,8.5975]
[1741797658687,0.06058261,124.49,124.47,8.0348]
[1741797659284,0.06058261,124.49,124.48,8.0348]
[1741797660989,0.06058261,124.49,124.47,4.1119]
[1741797661378,43.5115,124.54,124.48,20.91947805]
[1741797661584,4.57831909,124.53,124.51,8.0328]
[1741797661787,4.57831909,124.52,124.48,20.91947805]
[1741797661981,35.48,124.56,124.49,8.0339]
[1741797662180,4.5765598,124.55,124.48,20.91947805]
[1741797662389,4.5765598,124.54,124.49,35.48]
[1741797662685,4.6340806,124.53,124.5,0.05058178]
[1741797662885,4.5765598,124.52,124.5,0.05058178]
[1741797663192,4.57740958,124.51,124.5,0.05058178]
[1741797664393,0.0575208,124.53,124.5,0.05058178]
[1741797664584,4.5746287,124.52,124.5,0.05058178]
[1741797664785,0.0575208,124.53,124.5,0.05058178]
[1741797665086,4.57469295,124.52,124.5,0.05058178]
[1741797665287,4.57469295,124.51,124.5,0.05058178]
[1741797665494,0.0575208,124.53,124.5,0.05058178]
[1741797666288,0.0575208,124.53,124.51,8.0324]
[1741797666495,0.0575208,124.53,124.5,0.05058178]
[1741797666697,8.0897208,124.53,124.5,0.05058178]
[1741797666888,4.57251992,124.52,124.5,0.05058178]
[1741797667087,0.0575208,124.53,124.5,0.05058178]
[1741797667287,12.60468609,124.52,124.5,0.05058178]
[1741797667493,4.57188609,124.51,124.5,0.05058178]
[1741797667888,35.5175208,124.53,124.51,8.0325]
[1741797668194,4.57188325,124.52,124.51,8.0325]
[1741797668593,4.57188325,124.52,124.5,8.08378178]
[1741797668888,0.0575208,124.53,124.5,8.08378178]
[1741797669096,4.57185396,124.52,124.5,0.05058178]
[1741797669288,8.0894208,124.53,124.5,0.05058178]
[1741797669489,12.60390465,124.52,124.5,0.05058178]
[1741797669691,8.0323,124.52,124.5,0.05058178]
[1741797670593,4.57178185,124.51,124.5,0.05058178]
[1741797670995,8.0323,124.52,124.5,0.05058178]
[1741797671899,4.57094369,124.51,124.5,0.05058178]
[1741797672093,0.0575208,124.53,124.5,0.05058178]
[1741797672294,12.60325577,124.52,124.5,0.05058178]
[1741797672488,8.0326,124.52,124.5,0.05058178]
[1741797672792,4.57070585,124.51,124.5,0.05058178]
[1741797673093,12.60360585,124.51,124.5,0.05058178]
[1741797673898,4.57070585,124.51,124.5,0.05058178]
[1741797674594,4.57070585,124.51,124.5,8.08408178]
[1741797674797,4.57070585,124.51,124.5,0.05058178]
[1741797675307,12.60360585,124.51,124.5,0.05058178]
[1741797675692,4.57070585,124.51,124.45,8.5975]
[1741797675892,4.57070585,124.5,124.45,8.5975]
[1741797676190,20.91947805,124.52,124.45,8.5975]
[1741797676391,8.0352,124.48,124.45,8.5975]
[1741797676695,20.91947805,124.5,124.45,8.5975]
[1741797676894,0.05568273,124.48,124.45,8.65051997]
[1741797677195,0.05568273,124.48,124.45,8.5975]
[1741797677494,8.09088273,124.48,124.45,8.65340536]
[1741797677691,0.05568273,124.48,124.46,8.0361]
[1741797678297,0.05568273,124.48,124.45,8.65340536]
[1741797678894,0.05568273,124.48,124.45,16.68980536]
[1741797679498,0.05568273,124.48,124.45,0.05590536]
[1741797679694,8.0361,124.46,124.45,0.05590536]
[1741797680099,0.05568273,124.48,124.45,8.09260536]
[1741797680299,4.57233059,124.47,124.45,8.09260536]
[1741797680599,0.05568273,124.48,124.46,8.0356]
[1741797680792,0.05568273,124.48,124.45,0.05590536]
[1741797682597,8.0356,124.47,124.45,0.05590536]
[1741797682802,0.05568273,124.48,124.45,0.05590536]
[1741797683191,0.05568273,124.48,124.47,8.0355]
[1741797683897,0.05568273,124.48,124.46,8.0359]
[1741797684098,0.05568273,124.48,124.45,20.97538341]
[1741797684301,8.0341,124.5,124.47,8.0351]
[1741797684498,35.44,124.53,124.45,20.91947805]
[1741797684703,4.57306305,124.52,124.45,20.91947805]
[1741797684892,4.57306305,124.51,124.45,20.91947805]
[1741797685093,4.57305461,124.5,124.46,8.2147]
[1741797685298,8.034,124.5,124.47,8.0351]
[1741797685499,0.0511088,124.49,124.47,8.0922035]
[1741797686003,0.0511088,124.49,124.47,0.0571035]
[1741797686297,4.57366486,124.48,124.47,0.0571035]
[1741797686701,0.0511088,124.49,124.47,0.0571035]
[1741797687098,8.0858088,124.49,124.47,0.0571035]
[1741797687498,4.5738202,124.48,124.47,0.0571035]
[1741797689106,0.0511088,124.49,124.48,8.0348]
[1741797689306,0.0511088,124.49,124.47,0.0571035]
[1741797689803,8.0856088,124.49,124.47,0.0571035]
[1741797690600,0.0511088,124.49,124.47,0.0571035]
[1741797691003,8.0856088,124.49,124.47,0.0571035]
[1741797691201,0.0511088,124.49,124.47,0.0571035]
[1741797691604,8.3653088,124.49,124.4,25.17587805]
[1741797691810,20.91947805,124.48,124.4,4.2564]
[1741797691997,20.91947805,124.46,124.39,4.2691]
[1741797692201,43.4771,124.45,124.41,8.0393]
[1741797692502,4.1221,124.48,124.4,20.91947805]
[1741797692701,0.05838664,124.44,124.42,0.05530792]
[1741797694199,0.05838664,124.44,124.42,8.09360792]
[1741797695002,0.05838664,124.44,124.42,0.05530792]
[1741797696612,0.05838664,124.44,124.43,8.038]
[1741797696912,0.05838664,124.44,124.42,0.05530792]
[1741797697514,56.41786469,124.44,124.38,8.041]
[1741797697708,56.41786469,124.44,124.35,8.5423]
[1741797698009,20.91947805,124.42,124.35,8.0429]
[1741797698316,20.91947805,124.4,124.34,33.18026075]
[1741797698514,35.44,124.39,124.34,33.18026075]
[1741797698715,8.0425,124.37,124.36,0.05755049]
[1741797699912,20.97326312,124.38,124.33,33.18026075]
[1741797700110,8.0439,124.34,124.33,33.18026075]
[1741797700307,35.44,124.35,124.33,33.18026075]
[1741797700703,8.0439,124.34,124.33,33.18026075]
[1741797700909,28.96337805,124.34,124.33,5.24606075]
[1741797701109,28.96337805,124.34,124.33,0.94156075]
[1741797701305,33.44421276,124.34,124.33,0.94156075]
[1741797701508,25.40031276,124.34,124.32,0.05480877]
[1741797701708,20.91947805,124.34,124.32,0.05480877]
[1741797701914,20.91947805,124.34,124.32,8.77e-06]
[1741797702114,8.0471,124.3,124.24,8.2338]
[1741797702414,35.44,124.3,124.24,8.2338]
[1741797703314,0.05970805,124.28,124.26,0.05916893]
[1741797705117,20.91947805,124.27,124.26,0.05916893]
[1741797705312,28.96787805,124.27,124.26,0.05916893]
[1741797706116,20.91947805,124.27,124.26,0.05916893]
[1741797707308,20.91947805,124.27,124.18,8.0832]
[1741797707515,35.46,124.26,124.19,20.91947805]
[1741797707909,35.46,124.26,124.19,24.89277805]
[1741797708519,0.06154375,124.24,124.21,0.05252577]
[1741797708915,0.06154375,124.24,124.21,8.10422577]
[1741797709113,0.06154375,124.24,124.21,0.05252577]
[1741797709710,20.91947805,124.29,124.21,0.05252577]
[1741797709915,20.91947805,124.27,124.21,8.052]
[1741797710119,20.91947805,124.25,124.16,33.40197805]
[1741797710315,35.46,124.24,124.16,33.40197805]
[1741797710510,8.051,124.23,124.19,8.0535]
[1741797710916,0.05856794,124.22,124.2,0.05954233]
[1741797711618,8.11076794,124.22,124.2,0.05954233]
[1741797712318,0.05856794,124.22,124.2,0.05954233]
[1741797712618,0.05856794,124.22,124.21,8.0523]
[1741797713022,0.05856794,124.22,124.2,0.05954233]
[1741797714323,0.05856794,124.22,124.21,8.0523]
[1741797714819,0.05856794,124.22,124.2,0.05954233]
[1741797715623,0.05856794,124.22,124.2,8.11214233]
[1741797715824,0.05856794,124.22,124.2,0.05954233]
[1741797716219,0.05856794,124.22,124.2,8.11214233]
[1741797716518,0.05856794,124.22,124.2,0.05954233]
[1741797716919,8.11036794,124.22,124.2,0.05954233]
[1741797717520,0.05856794,124.22,124.2,0.05954233]
[1741797717822,20.91947805,124.21,124.16,8.4902]
[1741797718017,35.48,124.2,124.16,8.4902]
[1741797718216,35.48,124.2,124.18,8.0539]
[1741797718620,35.48,124.2,124.17,8.0544]
[1741797718826,0.05125244,124.2,124.17,0.05371529]
[1741797719224,0.05125244,124.2,124.19,8.0536]
[1741797719621,35.48,124.24,124.18,20.91947805]
[1741797719929,35.48,124.26,124.22,8.0513]
[1741797720126,20.91947805,124.27,124.2,20.91947805]
[1741797720327,35.48,124.27,124.2,20.91947805]
[1741797720821,0.05223697,124.25,124.22,0.06138091]
[1741797722124,8.051,124.23,124.22,0.06138091]
[1741797722619,64.45047805,124.23,124.22,0.06138091]
[1741797722820,64.43947805,124.23,124.16,8.4902]
[1741797723025,20.91947805,124.19,124.12,4.254]
[1741797723327,35.48,124.19,124.12,29.39657805]
[1741797723726,35.48,124.22,124.18,8.0542]
[1741797723927,0.05955412,124.17,124.14,56.45174277]
[1741797724127,35.48,124.22,124.14,56.39947805]
[1741797724325,8.053,124.2,124.14,56.39947805]
[1741797724528,20.91947805,124.21,124.14,35.48]
[1741797724723,20.91947805,124.21,124.14,8.0566]
[1741797724926,20.91947805,124.19,124.12,8.4771]
[1741797725228,20.91947805,124.15,124.1,0.30203]
[1741797725437,28.97567805,124.15,124.14,0.05685193]
[1741797725627,0.0590097,124.14,124.13,0.05146514]